[Event "Titled Tuesday Blitz August 16 Early 2022"]
[White "Nevednichy, Vladislav"]
[Black "Martinez Reyes, Pedro Ramon"]
[WhiteFideId "1205730"]
[BlackFideId "3901807"]
[WhiteElo "2373"]
[BlackElo "2327"]
[Result "0-1"]
[Round "01"]
[TimeControl "180+2"]
[Date "2022.08.18"]
[WhiteClock "0:00:00"]
[BlackClock "0:00:00"]

1. d4 {[%clk 0:00:00]}  d5 {[%clk 0:00:00]} 2. Nf3 {[%clk 0:00:00]}  Nf6 {[%clk 0:00:00]} 3. Bf4 {[%clk 0:00:00]}  e6 {[%clk 0:00:00]} 4. e3 {[%clk 0:00:00]}  Bd6 {[%clk 0:00:00]} 5. Nbd2 {[%clk 0:00:00]}  O-O {[%clk 0:00:00]} 6. c3 {[%clk 0:00:00]}  b6 {[%clk 0:00:00]} 7. Bd3 {[%clk 0:00:00]}  Ba6 {[%clk 0:00:00]} 8. Bxa6 {[%clk 0:00:00]}  Nxa6 {[%clk 0:00:00]} 9. Qe2 {[%clk 0:00:00]}  Nb8 {[%clk 0:00:00]} 10. Bg5 {[%clk 0:00:00]}  h6 {[%clk 0:00:00]} 11. Bh4 {[%clk 0:00:00]}  Nbd7 {[%clk 0:00:00]} 12. e4 {[%clk 0:00:00]}  dxe4 {[%clk 0:00:00]} 13. Nxe4 {[%clk 0:00:00]}  Be7 {[%clk 0:00:00]} 14. Ned2 {[%clk 0:00:00]}  c5 {[%clk 0:00:00]} 15. O-O {[%clk 0:00:00]}  Qc7 {[%clk 0:00:00]} 16. Bg3 {[%clk 0:00:00]}  Qb7 {[%clk 0:00:00]} 17. h3 {[%clk 0:00:00]}  Rac8 {[%clk 0:00:00]} 18. Rfd1 {[%clk 0:00:00]}  Rfd8 {[%clk 0:00:00]} 19. c4 {[%clk 0:00:00]}  cxd4 {[%clk 0:00:00]} 20. Nxd4 {[%clk 0:00:00]}  Nc5 {[%clk 0:00:00]} 21. Nb5 {[%clk 0:00:00]}  Nfe4 {[%clk 0:00:00]} 22. Nxe4 {[%clk 0:00:00]}  Nxe4 {[%clk 0:00:00]} 23. Rxd8+ {[%clk 0:00:00]}  Rxd8 {[%clk 0:00:00]} 24. Rd1 {[%clk 0:00:00]}  Rxd1+ {[%clk 0:00:00]} 25. Qxd1 {[%clk 0:00:00]}  Nxg3 {[%clk 0:00:00]} 26. fxg3 {[%clk 0:00:00]}  Qe4 {[%clk 0:00:00]} 27. b3 {[%clk 0:00:00]}  a6 {[%clk 0:00:00]} 28. Nc7 {[%clk 0:00:00]}  Qe5 {[%clk 0:00:00]} 29. Nxa6 {[%clk 0:00:00]}  Qxg3 {[%clk 0:00:00]} 30. b4 {[%clk 0:00:00]}  Bg5 {[%clk 0:00:00]} 31. c5 {[%clk 0:00:00]}  Be3+ {[%clk 0:00:00]} 32. Kh1 {[%clk 0:00:00]}  Bf4 {[%clk 0:00:00]} 33. Qg1 {[%clk 0:00:00]}  Qa3 {[%clk 0:00:00]} 34. b5 {[%clk 0:00:00]}  bxc5 {[%clk 0:00:00]} 35. Nxc5 {[%clk 0:00:00]}  Be3 {[%clk 0:00:00]} 36. Qb1 {[%clk 0:00:00]}  Qxc5 {[%clk 0:00:00]} 37. a4 {[%clk 0:00:00]}  Qb6 {[%clk 0:00:00]} 38. Qc2 {[%clk 0:00:00]}  Bf4 {[%clk 0:00:00]} 39. Qc8+ {[%clk 0:00:00]}  Kh7 {[%clk 0:00:00]} 40. Qc2+ {[%clk 0:00:00]}  f5 {[%clk 0:00:00]} 41. Qe2 {[%clk 0:00:00]}  Bc7 {[%clk 0:00:00]} 42. Qd3 {[%clk 0:00:00]}  Qc5 {[%clk 0:00:00]} 43. g4 {[%clk 0:00:00]}  Bb6 {[%clk 0:00:00]} 44. Qf1 {[%clk 0:00:00]}  Qd5+ {[%clk 0:00:00]} 45. Qg2 {[%clk 0:00:00]}  Qd1+ {[%clk 0:00:00]} 46. Kh2 {[%clk 0:00:00]}  Bc7+ {[%clk 0:00:00]} 47. Qg3 {[%clk 0:00:00]}  Qe2+ {[%clk 0:00:00]} 48. Kh1 {[%clk 0:00:00]}  Bxg3 {[%clk 0:00:00]} 49. gxf5 {[%clk 0:00:00]}  Qh2# {[%clk 0:00:00]} 0-1


[Site "https://www.chess.com"]

[Event "Titled Tuesday Blitz August 16 Early 2022"]
[White "Ohanyan, Emin"]
[Black "Ozates, Tuna"]
[WhiteFideId "13312022"]
[BlackFideId "6354521"]
[WhiteElo "1927"]
[BlackElo "1887"]
[Result "0-1"]
[Round "01"]
[TimeControl "180+1"]
[Date "2022.08.16"]
[WhiteClock "0:00:04"]
[BlackClock "0:00:53"]

1. d4 {[%clk 0:03:00]}  d5 {[%clk 0:02:59]} 2. c4 {[%clk 0:03:01]}  c6 {[%clk 0:03:00]} 3. Nf3 {[%clk 0:03:01]}  Nf6 {[%clk 0:02:59]} 4. Nc3 {[%clk 0:03:01]}  e6 {[%clk 0:03:00]} 5. Bg5 {[%clk 0:03:01]}  Nbd7 {[%clk 0:03:00]} 6. e3 {[%clk 0:03:01]}  Qa5 {[%clk 0:03:00]} 7. Nd2 {[%clk 0:02:58]}  Bb4 {[%clk 0:02:59]} 8. Rc1 {[%clk 0:02:57]}  O-O {[%clk 0:02:59]} 9. a3 {[%clk 0:02:54]}  Be7 {[%clk 0:02:55]} 10. Bh4 {[%clk 0:02:47]}  e5 {[%clk 0:02:51]} 11. cxd5 {[%clk 0:02:18]}  exd4 {[%clk 0:02:40]} 12. Nc4 {[%clk 0:01:55]}  Qd8 {[%clk 0:01:54]} 13. d6 {[%clk 0:00:56]}  dxc3 {[%clk 0:01:47]} 14. dxe7 {[%clk 0:00:57]}  Qxe7 {[%clk 0:01:46]} 15. Rxc3 {[%clk 0:00:57]}  Qe6 {[%clk 0:01:31]} 16. Qd6 {[%clk 0:00:42]}  Qg4 {[%clk 0:01:19]} 17. Qd4 {[%clk 0:00:35]}  Ne4 {[%clk 0:01:15]} 18. Bd3 {[%clk 0:00:14]}  Ndc5 {[%clk 0:01:07]} 19. Bxe4 {[%clk 0:00:12]}  Nxe4 {[%clk 0:01:05]} 20. Nd6 {[%clk 0:00:12]}  Nxc3 {[%clk 0:00:59]} 21. bxc3 {[%clk 0:00:04]}  Qxg2 {[%clk 0:00:52]} 22. Rf1 {[%clk 0:00:04]}  Bh3 {[%clk 0:00:53]} 0-1


[Site "https://www.chess.com"]

[Event "Titled Tuesday Blitz August 16 Early 2022"]
[White "Omariev, Maksim"]
[Black "Mirzoev, Emil"]
[WhiteFideId "4193423"]
[BlackFideId "14108640"]
[WhiteElo "2304"]
[BlackElo "2438"]
[Result "1-0"]
[Round "01"]
[TimeControl "180+2"]
[Date "2022.08.18"]
[WhiteClock "0:00:00"]
[BlackClock "0:00:00"]

1. g4 {[%clk 0:00:00]}  d5 {[%clk 0:00:00]} 2. Bg2 {[%clk 0:00:00]}  Bxg4 {[%clk 0:00:00]} 3. c4 {[%clk 0:00:00]}  dxc4 {[%clk 0:00:00]} 4. Bxb7 {[%clk 0:00:00]}  Nd7 {[%clk 0:00:00]} 5. Bxa8 {[%clk 0:00:00]}  Qxa8 {[%clk 0:00:00]} 6. f3 {[%clk 0:00:00]}  e5 {[%clk 0:00:00]} 7. Qa4 {[%clk 0:00:00]}  Be6 {[%clk 0:00:00]} 8. Na3 {[%clk 0:00:00]}  Bxa3 {[%clk 0:00:00]} 9. Qxa3 {[%clk 0:00:00]}  Ne7 {[%clk 0:00:00]} 10. b3 {[%clk 0:00:00]}  cxb3 {[%clk 0:00:00]} 11. axb3 {[%clk 0:00:00]}  Nc6 {[%clk 0:00:00]} 12. h4 {[%clk 0:00:00]}  Qb7 {[%clk 0:00:00]} 13. Nh3 {[%clk 0:00:00]}  f6 {[%clk 0:00:00]} 14. Nf2 {[%clk 0:00:00]}  Kf7 {[%clk 0:00:00]} 15. Kf1 {[%clk 0:00:00]}  a5 {[%clk 0:00:00]} 16. Rb1 {[%clk 0:00:00]}  Rb8 {[%clk 0:00:00]} 17. Ne4 {[%clk 0:00:00]}  Nd4 {[%clk 0:00:00]} 18. d3 {[%clk 0:00:00]}  Qb5 {[%clk 0:00:00]} 19. Bd2 {[%clk 0:00:00]}  a4 {[%clk 0:00:00]} 20. b4 {[%clk 0:00:00]}  Nb3 {[%clk 0:00:00]} 21. Be1 {[%clk 0:00:00]}  h6 {[%clk 0:00:00]} 22. Rg1 {[%clk 0:00:00]}  f5 {[%clk 0:00:00]} 23. Ng3 {[%clk 0:00:00]}  Nf6 {[%clk 0:00:00]} 24. h5 {[%clk 0:00:00]}  Nd5 {[%clk 0:00:00]} 25. Qb2 {[%clk 0:00:00]}  Nd4 {[%clk 0:00:00]} 26. Kg2 {[%clk 0:00:00]}  Nf4+ {[%clk 0:00:00]} 27. Kh1 {[%clk 0:00:00]}  Qd5 {[%clk 0:00:00]} 28. Bf2 {[%clk 0:00:00]}  Kg8 {[%clk 0:00:00]} 29. Bxd4 {[%clk 0:00:00]}  exd4 {[%clk 0:00:00]} 30. Qd2 {[%clk 0:00:00]}  Qe5 {[%clk 0:00:00]} 31. Rbc1 {[%clk 0:00:00]}  a3 {[%clk 0:00:00]} 32. Rc5 {[%clk 0:00:00]}  Qd6 {[%clk 0:00:00]} 33. Ra5 {[%clk 0:00:00]}  a2 {[%clk 0:00:00]} 34. Rxa2 {[%clk 0:00:00]}  Bxa2 {[%clk 0:00:00]} 35. Qxa2+ {[%clk 0:00:00]}  Kh8 {[%clk 0:00:00]} 36. Nxf5 {[%clk 0:00:00]}  Qe5 {[%clk 0:00:00]} 37. Nxg7 {[%clk 0:00:00]}  Rg8 {[%clk 0:00:00]} 38. Qf7 {[%clk 0:00:00]}  Rxg7 {[%clk 0:00:00]} 39. Rxg7 {[%clk 0:00:00]}  Qxg7 {[%clk 0:00:00]} 40. Qxf4 {[%clk 0:00:00]}  c6 {[%clk 0:00:00]} 41. Qb8+ {[%clk 0:00:00]}  Kh7 {[%clk 0:00:00]} 42. Qf4 {[%clk 0:00:00]}  Qe7 {[%clk 0:00:00]} 43. Qe4+ {[%clk 0:00:00]}  Qxe4 {[%clk 0:00:00]} 44. fxe4 {[%clk 0:00:00]}  Kg7 {[%clk 0:00:00]} 45. Kg2 {[%clk 0:00:00]}  Kf6 {[%clk 0:00:00]} 46. Kg3 {[%clk 0:00:00]}  Kg5 {[%clk 0:00:00]} 47. e5 {[%clk 0:00:00]}  Kf5 {[%clk 0:00:00]} 48. e4+ {[%clk 0:00:00]}  dxe3 {[%clk 0:00:00]} 49. d4 {[%clk 0:00:00]}  Ke4 {[%clk 0:00:00]} 50. e6 {[%clk 0:00:00]}  Kd3 {[%clk 0:00:00]} 51. e7 {[%clk 0:00:00]}  e2 {[%clk 0:00:00]} 52. Kf2 {[%clk 0:00:00]}  Kd2 {[%clk 0:00:00]} 53. e8=Q {[%clk 0:00:00]} 1-0


[Site "https://www.chess.com"]

[Event "Titled Tuesday Blitz August 16 Early 2022"]
[White "Oparin, Grigoriy"]
[Black "Marra, Eduardo da Costa"]
[WhiteFideId "24125890"]
[BlackFideId "2106990"]
[WhiteElo "2639"]
[BlackElo "2250"]
[Result "1-0"]
[Round "01"]
[TimeControl "180+1"]
[Date "2022.08.16"]
[WhiteClock "0:02:30"]
[BlackClock "0:01:52"]

1. e4 {[%clk 0:03:00]}  c5 {[%clk 0:02:54]} 2. Nf3 {[%clk 0:03:01]}  e6 {[%clk 0:02:55]} 3. d4 {[%clk 0:03:01]}  cxd4 {[%clk 0:02:55]} 4. Nxd4 {[%clk 0:03:02]}  Nf6 {[%clk 0:02:55]} 5. Nc3 {[%clk 0:03:02]}  Nc6 {[%clk 0:02:55]} 6. Be2 {[%clk 0:03:00]}  Bb4 {[%clk 0:02:55]} 7. Nxc6 {[%clk 0:02:58]}  bxc6 {[%clk 0:02:54]} 8. O-O {[%clk 0:02:56]}  Bxc3 {[%clk 0:02:52]} 9. bxc3 {[%clk 0:02:57]}  Nxe4 {[%clk 0:02:52]} 10. Qd4 {[%clk 0:02:57]}  d5 {[%clk 0:02:37]} 11. Ba3 {[%clk 0:02:49]}  f6 {[%clk 0:02:25]} 12. f3 {[%clk 0:02:42]}  e5 {[%clk 0:02:20]} 13. Qe3 {[%clk 0:02:40]}  Nd6 {[%clk 0:02:16]} 14. Qc5 {[%clk 0:02:37]}  Ke7 {[%clk 0:02:01]} 15. Rab1 {[%clk 0:02:30]}  Be6 {[%clk 0:01:52]} 16. Rb7+ {[%clk 0:02:30]} 1-0


[Site "https://www.chess.com"]

[Event "Titled Tuesday Blitz August 16 Early 2022"]
[White "Papayan, Oleg"]
[Black "Beerdsen, Thomas"]
[WhiteFideId "4193911"]
[BlackFideId "1030108"]
[WhiteElo "2038"]
[BlackElo "2567"]
[Result "0-1"]
[Round "01"]
[TimeControl "180+2"]
[Date "2022.08.18"]
[WhiteClock "0:00:00"]
[BlackClock "0:00:00"]

1. e4 {[%clk 0:00:00]}  e5 {[%clk 0:00:00]} 2. Nf3 {[%clk 0:00:00]}  Nc6 {[%clk 0:00:00]} 3. Bb5 {[%clk 0:00:00]}  f5 {[%clk 0:00:00]} 4. d3 {[%clk 0:00:00]}  fxe4 {[%clk 0:00:00]} 5. dxe4 {[%clk 0:00:00]}  Nf6 {[%clk 0:00:00]} 6. O-O {[%clk 0:00:00]}  d6 {[%clk 0:00:00]} 7. Bc4 {[%clk 0:00:00]}  Na5 {[%clk 0:00:00]} 8. Bd3 {[%clk 0:00:00]}  Be7 {[%clk 0:00:00]} 9. b4 {[%clk 0:00:00]}  Nc6 {[%clk 0:00:00]} 10. b5 {[%clk 0:00:00]}  Nb8 {[%clk 0:00:00]} 11. Bc4 {[%clk 0:00:00]}  Bg4 {[%clk 0:00:00]} 12. h3 {[%clk 0:00:00]}  Bh5 {[%clk 0:00:00]} 13. g4 {[%clk 0:00:00]}  Bg6 {[%clk 0:00:00]} 14. Ng5 {[%clk 0:00:00]}  Nxe4 {[%clk 0:00:00]} 15. Ne6 {[%clk 0:00:00]}  Qd7 {[%clk 0:00:00]} 16. Nxg7+ {[%clk 0:00:00]}  Kd8 {[%clk 0:00:00]} 17. Ne6+ {[%clk 0:00:00]}  Kc8 {[%clk 0:00:00]} 18. Ng7 {[%clk 0:00:00]}  Nc5 {[%clk 0:00:00]} 19. Be3 {[%clk 0:00:00]}  Bf6 {[%clk 0:00:00]} 20. Bxc5 {[%clk 0:00:00]}  Qxg7 {[%clk 0:00:00]} 21. Be6+ {[%clk 0:00:00]}  Nd7 {[%clk 0:00:00]} 22. Bxd6 {[%clk 0:00:00]}  cxd6 {[%clk 0:00:00]} 23. Qxd6 {[%clk 0:00:00]}  Qe7 {[%clk 0:00:00]} 24. Bxd7+ {[%clk 0:00:00]}  Qxd7 {[%clk 0:00:00]} 25. Qxf6 {[%clk 0:00:00]}  Rg8 {[%clk 0:00:00]} 26. Nc3 {[%clk 0:00:00]}  h5 {[%clk 0:00:00]} 27. Rfd1 {[%clk 0:00:00]}  Qf7 {[%clk 0:00:00]} 28. Qxe5 {[%clk 0:00:00]}  Rf8 {[%clk 0:00:00]} 29. Qc5+ {[%clk 0:00:00]}  Kb8 {[%clk 0:00:00]} 30. Nd5 {[%clk 0:00:00]}  b6 {[%clk 0:00:00]} 31. Qd6+ {[%clk 0:00:00]}  Kb7 {[%clk 0:00:00]} 32. Qc6+ {[%clk 0:00:00]}  Kb8 {[%clk 0:00:00]} 33. Nxb6 {[%clk 0:00:00]}  Qxf2+ {[%clk 0:00:00]} 34. Kh1 {[%clk 0:00:00]}  Qxb6 {[%clk 0:00:00]} 35. Qg2 {[%clk 0:00:00]}  hxg4 {[%clk 0:00:00]} 36. Rf1 {[%clk 0:00:00]}  Rh8 {[%clk 0:00:00]} 0-1


[Site "https://www.chess.com"]

[Event "Titled Tuesday Blitz August 16 Early 2022"]
[White "Perez Ponsa, Federico"]
[Black "Zlatin, Alexander"]
[WhiteFideId "117927"]
[BlackFideId "2810549"]
[WhiteElo "2604"]
[BlackElo "2228"]
[Result "0-1"]
[Round "01"]
[TimeControl "180+1"]
[Date "2022.08.16"]
[WhiteClock "0:00:04"]
[BlackClock "0:00:07"]

1. d4 {[%clk 0:02:59]}  d5 {[%clk 0:03:00]} 2. c4 {[%clk 0:02:58]}  e6 {[%clk 0:03:00]} 3. Nc3 {[%clk 0:02:58]}  c5 {[%clk 0:03:00]} 4. cxd5 {[%clk 0:02:56]}  cxd4 {[%clk 0:03:01]} 5. Qa4+ {[%clk 0:02:54]}  Bd7 {[%clk 0:03:01]} 6. Qxd4 {[%clk 0:02:55]}  exd5 {[%clk 0:03:02]} 7. Qxd5 {[%clk 0:02:54]}  Nf6 {[%clk 0:03:03]} 8. Qd1 {[%clk 0:02:55]}  Nc6 {[%clk 0:03:02]} 9. Nf3 {[%clk 0:02:55]}  Bc5 {[%clk 0:03:03]} 10. e3 {[%clk 0:02:55]}  O-O {[%clk 0:03:03]} 11. Be2 {[%clk 0:02:56]}  Qe7 {[%clk 0:03:03]} 12. O-O {[%clk 0:02:56]}  Rfd8 {[%clk 0:03:04]} 13. Qc2 {[%clk 0:02:53]}  Rac8 {[%clk 0:03:02]} 14. a3 {[%clk 0:02:53]}  Ne5 {[%clk 0:03:00]} 15. Nd4 {[%clk 0:02:51]}  Bd6 {[%clk 0:02:50]} 16. Nf5 {[%clk 0:02:47]}  Bxf5 {[%clk 0:02:47]} 17. Qxf5 {[%clk 0:02:48]}  g6 {[%clk 0:02:46]} 18. Qh3 {[%clk 0:02:43]}  h5 {[%clk 0:02:32]} 19. e4 {[%clk 0:02:29]}  Neg4 {[%clk 0:02:29]} 20. Bg5 {[%clk 0:02:10]}  Bxh2+ {[%clk 0:02:16]} 21. Kh1 {[%clk 0:02:09]}  Be5 {[%clk 0:02:09]} 22. Nd5 {[%clk 0:01:38]}  Qe6 {[%clk 0:01:55]} 23. f3 {[%clk 0:01:16]}  Bxb2 {[%clk 0:01:06]} 24. Rab1 {[%clk 0:00:53]}  Nxd5 {[%clk 0:00:49]} 25. Rxb2 {[%clk 0:00:31]}  Qe5 {[%clk 0:00:27]} 26. Rxb7 {[%clk 0:00:25]}  Qxg5 {[%clk 0:00:22]} 27. fxg4 {[%clk 0:00:26]}  hxg4 {[%clk 0:00:15]} 28. Bxg4 {[%clk 0:00:08]}  Nf4 {[%clk 0:00:08]} 29. Rxf4 {[%clk 0:00:07]}  Rc1+ {[%clk 0:00:07]} 30. Kh2 {[%clk 0:00:03]}  Qxf4+ {[%clk 0:00:07]} 31. Qg3 {[%clk 0:00:04]}  Rh1+ {[%clk 0:00:07]} 32. Kxh1 {[%clk 0:00:04]}  Qxg3 {[%clk 0:00:07]} 0-1


[Site "https://www.chess.com"]

[Event "Titled Tuesday Blitz August 16 Early 2022"]
[White "Petrova, Irina"]
[Black "Turayev, Shahruh"]
[WhiteFideId "14124122"]
[BlackFideId "14003856"]
[WhiteElo "2021"]
[BlackElo "2217"]
[Result "0-1"]
[Round "01"]
[TimeControl "180+2"]
[Date "2022.08.18"]
[WhiteClock "0:00:00"]
[BlackClock "0:00:00"]

1. e4 {[%clk 0:00:00]}  e6 {[%clk 0:00:00]} 2. d4 {[%clk 0:00:00]}  d5 {[%clk 0:00:00]} 3. Nc3 {[%clk 0:00:00]}  Bb4 {[%clk 0:00:00]} 4. Ne2 {[%clk 0:00:00]}  dxe4 {[%clk 0:00:00]} 5. a3 {[%clk 0:00:00]}  Bxc3+ {[%clk 0:00:00]} 6. Nxc3 {[%clk 0:00:00]}  Nc6 {[%clk 0:00:00]} 7. Bb5 {[%clk 0:00:00]}  Ne7 {[%clk 0:00:00]} 8. Bg5 {[%clk 0:00:00]}  f6 {[%clk 0:00:00]} 9. Be3 {[%clk 0:00:00]}  O-O {[%clk 0:00:00]} 10. Qd2 {[%clk 0:00:00]}  f5 {[%clk 0:00:00]} 11. f3 {[%clk 0:00:00]}  Nd5 {[%clk 0:00:00]} 12. fxe4 {[%clk 0:00:00]}  Nxe3 {[%clk 0:00:00]} 13. Qxe3 {[%clk 0:00:00]}  f4 {[%clk 0:00:00]} 14. Qf2 {[%clk 0:00:00]}  Qxd4 {[%clk 0:00:00]} 15. Bxc6 {[%clk 0:00:00]}  Qxf2+ {[%clk 0:00:00]} 16. Kxf2 {[%clk 0:00:00]}  bxc6 {[%clk 0:00:00]} 17. e5 {[%clk 0:00:00]}  Ba6 {[%clk 0:00:00]} 18. Rhe1 {[%clk 0:00:00]}  Rad8 {[%clk 0:00:00]} 19. Rad1 {[%clk 0:00:00]}  g5 {[%clk 0:00:00]} 20. Rxd8 {[%clk 0:00:00]}  Rxd8 {[%clk 0:00:00]} 21. Rd1 {[%clk 0:00:00]}  Rxd1 {[%clk 0:00:00]} 22. Nxd1 {[%clk 0:00:00]}  Kg7 {[%clk 0:00:00]} 23. Kf3 {[%clk 0:00:00]}  Kg6 {[%clk 0:00:00]} 24. Ke4 {[%clk 0:00:00]}  Bf1 {[%clk 0:00:00]} 25. g4 {[%clk 0:00:00]}  Bg2+ {[%clk 0:00:00]} 26. Kd4 {[%clk 0:00:00]}  h5 {[%clk 0:00:00]} 27. gxh5+ {[%clk 0:00:00]}  Kxh5 {[%clk 0:00:00]} 28. Nf2 {[%clk 0:00:00]}  g4 {[%clk 0:00:00]} 29. Nd3 {[%clk 0:00:00]}  Kg5 {[%clk 0:00:00]} 30. b4 {[%clk 0:00:00]}  Bf1 {[%clk 0:00:00]} 31. Nf2 {[%clk 0:00:00]}  g3 {[%clk 0:00:00]} 32. hxg3 {[%clk 0:00:00]}  fxg3 {[%clk 0:00:00]} 33. Ne4+ {[%clk 0:00:00]}  Kf4 {[%clk 0:00:00]} 34. Nxg3 {[%clk 0:00:00]}  Kxg3 {[%clk 0:00:00]} 35. Kc5 {[%clk 0:00:00]}  Bg2 {[%clk 0:00:00]} 36. c4 {[%clk 0:00:00]}  Kf4 {[%clk 0:00:00]} 37. a4 {[%clk 0:00:00]}  Kxe5 {[%clk 0:00:00]} 38. b5 {[%clk 0:00:00]}  cxb5 {[%clk 0:00:00]} 39. Kxb5 {[%clk 0:00:00]}  Bb7 {[%clk 0:00:00]} 40. Kc5 {[%clk 0:00:00]}  Ke4 {[%clk 0:00:00]} 0-1


[Site "https://www.chess.com"]

[Event "Titled Tuesday Blitz August 16 Early 2022"]
[White "Popilski, Gil"]
[Black "Acosta Cruz, Oscar Yosimar"]
[WhiteFideId "2809060"]
[BlackFideId "5111269"]
[WhiteElo "2537"]
[BlackElo "2147"]
[Result "1-0"]
[Round "01"]
[TimeControl "180+2"]
[Date "2022.08.18"]
[WhiteClock "0:00:00"]
[BlackClock "0:00:00"]

1. f4 {[%clk 0:00:00]}  b6 {[%clk 0:00:00]} 2. e4 {[%clk 0:00:00]}  Bb7 {[%clk 0:00:00]} 3. Nc3 {[%clk 0:00:00]}  e6 {[%clk 0:00:00]} 4. Nf3 {[%clk 0:00:00]}  c5 {[%clk 0:00:00]} 5. g3 {[%clk 0:00:00]}  Nc6 {[%clk 0:00:00]} 6. Bg2 {[%clk 0:00:00]}  d6 {[%clk 0:00:00]} 7. O-O {[%clk 0:00:00]}  Nf6 {[%clk 0:00:00]} 8. d4 {[%clk 0:00:00]}  cxd4 {[%clk 0:00:00]} 9. Nxd4 {[%clk 0:00:00]}  Be7 {[%clk 0:00:00]} 10. e5 {[%clk 0:00:00]}  Nxd4 {[%clk 0:00:00]} 11. exf6 {[%clk 0:00:00]}  Bxg2 {[%clk 0:00:00]} 12. fxe7 {[%clk 0:00:00]}  Qc7 {[%clk 0:00:00]} 13. Kxg2 {[%clk 0:00:00]}  Nf5 {[%clk 0:00:00]} 14. g4 {[%clk 0:00:00]}  Nxe7 {[%clk 0:00:00]} 15. f5 {[%clk 0:00:00]}  O-O {[%clk 0:00:00]} 16. f6 {[%clk 0:00:00]}  Ng6 {[%clk 0:00:00]} 17. Ne4 {[%clk 0:00:00]}  d5 {[%clk 0:00:00]} 18. fxg7 {[%clk 0:00:00]}  Kxg7 {[%clk 0:00:00]} 19. Nf6 {[%clk 0:00:00]}  Rac8 {[%clk 0:00:00]} 20. c3 {[%clk 0:00:00]}  e5 {[%clk 0:00:00]} 21. Nh5+ {[%clk 0:00:00]}  Kg8 {[%clk 0:00:00]} 22. Qxd5 {[%clk 0:00:00]}  Rcd8 {[%clk 0:00:00]} 23. Qe4 {[%clk 0:00:00]}  Qe7 {[%clk 0:00:00]} 24. Bh6 {[%clk 0:00:00]}  Qh4 {[%clk 0:00:00]} 25. Rf2 {[%clk 0:00:00]}  Nf4+ {[%clk 0:00:00]} 26. Bxf4 {[%clk 0:00:00]}  exf4 {[%clk 0:00:00]} 27. Qxf4 {[%clk 0:00:00]}  Rd3 {[%clk 0:00:00]} 28. Rg1 {[%clk 0:00:00]}  f5 {[%clk 0:00:00]} 29. Kh1 {[%clk 0:00:00]} 1-0


[Site "https://www.chess.com"]

[Event "Titled Tuesday Blitz August 16 Early 2022"]
[White "Puranik, Abhimanyu"]
[Black "Lamaze, Simon"]
[WhiteFideId "5061245"]
[BlackFideId "36069264"]
[WhiteElo "2520"]
[BlackElo "2131"]
[Result "1-0"]
[Round "01"]
[TimeControl "180+1"]
[Date "2022.08.16"]
[WhiteClock "0:00:47"]
[BlackClock "0:00:18"]

1. d4 {[%clk 0:03:00]}  Nf6 {[%clk 0:02:40]} 2. Nc3 {[%clk 0:02:59]}  d5 {[%clk 0:02:32]} 3. Bf4 {[%clk 0:02:59]}  a6 {[%clk 0:02:31]} 4. e3 {[%clk 0:02:59]}  b5 {[%clk 0:02:31]} 5. Nf3 {[%clk 0:02:56]}  e6 {[%clk 0:02:31]} 6. Be2 {[%clk 0:02:56]}  c5 {[%clk 0:02:30]} 7. O-O {[%clk 0:02:53]}  Nc6 {[%clk 0:02:29]} 8. Ne5 {[%clk 0:02:52]}  Bb7 {[%clk 0:02:30]} 9. Qd2 {[%clk 0:02:43]}  Be7 {[%clk 0:02:28]} 10. dxc5 {[%clk 0:02:43]}  Bxc5 {[%clk 0:02:26]} 11. Nxc6 {[%clk 0:02:29]}  Bxc6 {[%clk 0:02:27]} 12. Bf3 {[%clk 0:02:29]}  O-O {[%clk 0:02:25]} 13. a4 {[%clk 0:02:29]}  b4 {[%clk 0:02:25]} 14. Ne2 {[%clk 0:02:29]}  Bd6 {[%clk 0:02:23]} 15. Bg5 {[%clk 0:02:27]}  Be7 {[%clk 0:02:22]} 16. Nd4 {[%clk 0:02:27]}  Bb7 {[%clk 0:02:22]} 17. Bxf6 {[%clk 0:02:27]}  gxf6 {[%clk 0:02:16]} 18. Rad1 {[%clk 0:02:26]}  f5 {[%clk 0:02:16]} 19. Kh1 {[%clk 0:02:17]}  Kh8 {[%clk 0:02:14]} 20. g3 {[%clk 0:02:15]}  Rc8 {[%clk 0:02:13]} 21. Ne2 {[%clk 0:02:13]}  a5 {[%clk 0:02:11]} 22. Nf4 {[%clk 0:02:10]}  Bf6 {[%clk 0:02:09]} 23. Rb1 {[%clk 0:02:05]}  Qe7 {[%clk 0:01:58]} 24. Rfd1 {[%clk 0:02:03]}  Rc5 {[%clk 0:01:55]} 25. c3 {[%clk 0:01:54]}  bxc3 {[%clk 0:01:42]} 26. bxc3 {[%clk 0:01:54]}  Rxc3 {[%clk 0:01:37]} 27. Nh5 {[%clk 0:01:51]}  Be5 {[%clk 0:01:37]} 28. Bg2 {[%clk 0:01:46]}  Kg8 {[%clk 0:01:37]} 29. Rb6 {[%clk 0:01:43]}  Bc6 {[%clk 0:01:31]} 30. Rc1 {[%clk 0:01:24]}  Rxc1+ {[%clk 0:01:25]} 31. Qxc1 {[%clk 0:01:25]}  Bxa4 {[%clk 0:01:25]} 32. f4 {[%clk 0:01:25]}  Bh8 {[%clk 0:01:20]} 33. h3 {[%clk 0:01:20]}  Bd7 {[%clk 0:01:14]} 34. Qc7 {[%clk 0:01:18]}  a4 {[%clk 0:01:13]} 35. Rb7 {[%clk 0:01:13]}  a3 {[%clk 0:01:13]} 36. Ra7 {[%clk 0:01:13]}  d4 {[%clk 0:00:48]} 37. e4 {[%clk 0:01:05]}  fxe4 {[%clk 0:00:40]} 38. Bxe4 {[%clk 0:01:05]}  a2 {[%clk 0:00:35]} 39. Rxa2 {[%clk 0:01:03]}  Qe8 {[%clk 0:00:29]} 40. Ra7 {[%clk 0:01:00]}  Bb5 {[%clk 0:00:21]} 41. Qd6 {[%clk 0:00:55]}  Qb8 {[%clk 0:00:16]} 42. Qc5 {[%clk 0:00:54]}  h6 {[%clk 0:00:16]} 43. Rb7 {[%clk 0:00:49]}  Qa8 {[%clk 0:00:16]} 44. Qxb5 {[%clk 0:00:47]}  Qa1+ {[%clk 0:00:17]} 45. Qb1 {[%clk 0:00:47]}  Qc3 {[%clk 0:00:18]} 46. Bh7# {[%clk 0:00:47]} 1-0


[Site "https://www.chess.com"]

[Event "Titled Tuesday Blitz August 16 Early 2022"]
[White "Ronka, Erik"]
[Black "Quispe Santacruz, Javier"]
[WhiteFideId "505080"]
[BlackFideId "3800920"]
[WhiteElo "2264"]
[BlackElo "1929"]
[Result "1-0"]
[Round "01"]
[TimeControl "180+2"]
[Date "2022.08.18"]
[WhiteClock "0:00:00"]
[BlackClock "0:00:00"]

1. e4 {[%clk 0:00:00]}  e5 {[%clk 0:00:00]} 2. Nf3 {[%clk 0:00:00]}  Nc6 {[%clk 0:00:00]} 3. Nc3 {[%clk 0:00:00]}  Nf6 {[%clk 0:00:00]} 4. d4 {[%clk 0:00:00]}  exd4 {[%clk 0:00:00]} 5. Nxd4 {[%clk 0:00:00]}  Bb4 {[%clk 0:00:00]} 6. Nxc6 {[%clk 0:00:00]}  bxc6 {[%clk 0:00:00]} 7. Bd3 {[%clk 0:00:00]}  O-O {[%clk 0:00:00]} 8. O-O {[%clk 0:00:00]}  Re8 {[%clk 0:00:00]} 9. Bg5 {[%clk 0:00:00]}  h6 {[%clk 0:00:00]} 10. Bh4 {[%clk 0:00:00]}  Be7 {[%clk 0:00:00]} 11. Kh1 {[%clk 0:00:00]}  Rb8 {[%clk 0:00:00]} 12. b3 {[%clk 0:00:00]}  d6 {[%clk 0:00:00]} 13. Bg3 {[%clk 0:00:00]}  Bg4 {[%clk 0:00:00]} 14. Qd2 {[%clk 0:00:00]}  Nh5 {[%clk 0:00:00]} 15. Bf4 {[%clk 0:00:00]}  Nxf4 {[%clk 0:00:00]} 16. Qxf4 {[%clk 0:00:00]}  Be6 {[%clk 0:00:00]} 17. Ne2 {[%clk 0:00:00]}  Bf6 {[%clk 0:00:00]} 18. Rad1 {[%clk 0:00:00]}  Be5 {[%clk 0:00:00]} 19. Qe3 {[%clk 0:00:00]}  Rf8 {[%clk 0:00:00]} 20. f4 {[%clk 0:00:00]}  Bf6 {[%clk 0:00:00]} 21. e5 {[%clk 0:00:00]}  Be7 {[%clk 0:00:00]} 22. f5 {[%clk 0:00:00]}  Bd5 {[%clk 0:00:00]} 23. f6 {[%clk 0:00:00]}  gxf6 {[%clk 0:00:00]} 24. Qxh6 {[%clk 0:00:00]} 1-0


[Site "https://www.chess.com"]